bitfinex-derivatives/quotes_ETHF0:USTF0_20241024
["timestamp","ask_amount","ask_price","bid_price","bid_amount"]
[1729753587025,3.2078,2554.0,2553.8,0.3527]
[1729753587218,3.56049,2554.0,2553.8,0.3527]
[1729753587418,7.86214499,2554.0,2553.8,0.3527]
[1729753587613,7.86214499,2554.0,2553.8,1.1614]
[1729753588014,7.50945499,2554.0,2553.9,0.3527]
[1729753588923,3.2078,2554.0,2553.9,6.71846318]
[1729753591424,40.8,2554.4,2554.0,0.35268]
[1729753591425,0.35266,2554.2,2554.0,0.35268]
[1729753591631,0.35266,2554.2,2554.0,1.39468]
[1729753592325,0.3985,2554.6,2554.0,1.39468]
[1729753592326,3.2078,2554.8,2554.1,2.84686318]
[1729753592516,0.35263,2554.5,2554.2,0.75685]
[1729753593015,41.15261,2554.6,2554.2,0.4042]
[1729753593220,41.15261,2554.6,2554.3,0.35263]
[1729753593421,0.35261,2554.6,2554.3,0.35263]
[1729753593620,0.8048,2554.7,2554.4,2.45056318]
[1729753593828,41.6048,2554.7,2554.5,0.35261]
[1729753594327,41.95739,2554.7,2554.5,0.35261]
[1729753594624,1.15739,2554.7,2554.5,0.35261]
[1729753595423,1.15739,2554.7,2554.6,2.45056318]
[1729753596220,0.8048,2554.7,2554.6,2.45056318]
[1729753596522,0.8048,2554.7,2554.6,3.49256318]
[1729753596828,1.15739,2554.7,2554.6,1.042]
[1729753597039,1.15739,2554.7,2554.4,2.80318318]
[1729753597224,4.88637388,2554.7,2553.9,2.88606318]
[1729753597431,4.88637388,2554.7,2553.9,3.22805318]
[1729753597432,0.35267,2554.1,2553.9,3.22805318]
[1729753597623,0.35267,2554.1,2554.0,4.2258]
[1729753598131,3.2078,2554.5,2554.0,4.2258]
[1729753598338,3.2078,2554.5,2554.0,3.2078]
[1729753598627,0.35267,2554.1,2553.9,2.45056318]
[1729753598833,0.35267,2554.1,2554.0,1.018]
[1729753600035,0.78136,2554.2,2554.0,1.018]
[1729753600227,0.4287,2554.2,2554.0,1.018]
[1729753600429,0.35267,2554.1,2554.0,1.018]
[1729753601437,0.78136,2554.2,2554.0,1.018]
[1729753602736,0.78136,2554.2,2554.0,1.37068]
[1729753603532,0.78136,2554.2,2554.0,1.018]
[1729753604139,0.78136,2554.2,2554.0,1.37068]
[1729753605238,0.78136,2554.2,2554.0,1.018]
[1729753605636,0.78136,2554.2,2554.0,1.37068]
[1729753606737,0.35267,2554.1,2554.0,1.018]
[1729753607043,0.4287,2554.2,2554.0,1.37068]
[1729753607044,0.78136,2554.2,2554.0,1.37068]
[1729753609442,0.78136,2554.2,2553.9,5.65836318]
[1729753609443,0.4287,2554.2,2553.9,5.65836318]
[1729753609639,0.35268,2554.0,2553.8,1.018]
[1729753609842,3.6365,2554.2,2553.8,1.3707]
[1729753610041,0.35268,2554.1,2553.8,1.018]
[1729753610236,0.3948,2554.1,2553.8,1.018]
[1729753610740,0.74748,2554.1,2553.9,1.3707]
[1729753611336,0.74748,2554.1,2553.8,0.3527]
[1729753611536,0.74748,2554.1,2553.9,1.37069]
[1729753612947,0.3948,2554.1,2554.0,0.35268]
[1729753613637,0.35261,2554.6,2554.0,4.3242]
[1729753613949,5.83007741,2554.7,2554.5,0.35261]
[1729753614254,0.3526,2554.6,2554.5,0.35261]
[1729753614742,0.3526,2554.6,2554.4,0.35262]
[1729753614944,0.35261,2554.6,2554.4,0.35262]
[1729753615148,5.47747741,2554.7,2554.6,0.3526]
[1729753615342,0.35261,2554.6,2554.4,2.80318318]
[1729753616737,0.35261,2554.6,2554.4,0.35263]
[1729753617738,5.47747741,2554.7,2554.4,0.35263]
[1729753617933,0.35261,2554.6,2554.4,0.35263]
[1729753618350,5.47747741,2554.7,2554.3,0.35263]
[1729753618351,0.35261,2554.5,2554.3,0.35263]
[1729753618643,0.35261,2554.5,2554.3,0.35264]
[1729753619644,0.35261,2554.5,2554.3,0.35263]
[1729753619943,0.35261,2554.5,2554.2,3.2078]
[1729753620148,0.35261,2554.5,2554.3,0.35263]
[1729753620352,0.35261,2554.5,2554.3,1.018]
[1729753620353,3.2078,2554.5,2554.3,1.018]
[1729753620645,4.61648324,2554.4,2554.3,1.018]
[1729753621436,0.35268,2554.0,2553.7,2.45056318]
[1729753621638,0.8512,2553.9,2553.8,1.37071]
[1729753622048,0.8512,2553.9,2553.8,8.49451]
[1729753622250,0.8512,2553.9,2553.8,1.37071]
[1729753623848,0.4284,2553.9,2553.8,1.37071]
[1729753624351,0.4284,2553.9,2553.8,0.35271]
[1729753624540,0.35266,2554.2,2553.8,5.05655302]
[1729753624737,0.35266,2554.2,2554.0,0.35268]
[1729753624950,0.35266,2554.2,2554.0,1.37068]
[1729753625149,0.35267,2554.1,2554.0,1.018]
[1729753625354,0.4001,2554.1,2554.0,1.018]
[1729753625551,0.75277,2554.1,2554.0,1.018]
[1729753626150,0.35269,2554.0,2553.8,0.3527]
[1729753626450,0.35269,2554.0,2553.9,1.14055551]
[1729753627253,3.2078,2554.0,2553.9,0.47524551]
[1729753627547,0.35278,2553.3,2553.1,1.0252322]
[1729753627749,3.2078,2553.5,2553.2,0.12259272]
[1729753627950,1.16367,2553.4,2553.1,0.3528]
[1729753628647,1.16367,2553.4,2553.1,1.4028]
[1729753630253,0.8109,2553.4,2553.2,0.35279]
[1729753630953,0.8109,2553.4,2553.1,1.05]
[1729753631151,3.2078,2553.5,2553.1,1.05]
[1729753631359,3.2078,2553.5,2553.4,0.35277]
[1729753631947,3.2078,2553.5,2553.4,6.71933318]
[1729753635152,3.2078,2553.5,2553.4,7.76933318]
[1729753635355,3.2078,2553.5,2553.4,5.31877]
[1729753636259,3.2078,2553.5,2553.2,0.4092]
[1729753636460,0.3528,2553.4,2553.3,1.05]
[1729753639561,3.5606,2553.4,2553.3,1.05]
[1729753639761,3.2078,2553.4,2553.1,0.35284]
[1729753640055,0.35282,2553.3,2553.1,1.40284]
[1729753640259,0.74982,2553.3,2553.1,1.40284]
[1729753640963,0.397,2553.3,2553.1,1.40284]
[1729753641956,0.397,2553.3,2553.2,0.35283]
[1729753642357,0.74982,2553.3,2553.1,1.40283]
[1729753642657,0.397,2553.3,2553.1,1.40283]
[1729753645257,3.6048,2553.3,2553.1,1.40283]
[1729753645459,3.95762,2553.3,2553.1,1.40283]
[1729753645660,0.76293,2553.2,2553.1,1.05]
[1729753646171,0.76293,2553.2,2553.1,1.40284]
[1729753646172,0.4101,2553.2,2553.1,1.40284]
[1729753646469,0.76293,2553.2,2553.0,0.77355]
[1729753646658,0.76293,2553.2,2553.1,1.05]
[1729753647154,0.35284,2553.1,2553.0,1.4707]
[1729753647860,0.4101,2553.2,2553.0,1.4707]
[1729753648055,0.4101,2553.2,2553.0,1.82355]
[1729753648056,0.76294,2553.2,2553.0,1.82355]
[1729753650957,0.4101,2553.2,2553.1,0.35284]
[1729753654170,3.6048,2553.3,2553.2,0.35283]
[1729753655260,3.2078,2553.3,2553.2,0.35283]
[1729753657872,3.2078,2553.3,2553.2,4.26963]
[1729753658367,3.2078,2553.3,2553.2,4.70543]
[1729753661478,3.6306,2553.5,2553.4,0.3528]
[1729753662272,4.76045927,2553.5,2553.4,0.3528]
[1729753665267,5.11324927,2553.5,2553.3,1.3818]
[1729753665570,1.53765927,2553.4,2553.3,1.3818]
[1729753668874,0.4078,2553.4,2553.3,2.51165927]
[1729753669275,0.4078,2553.4,2553.3,2.63425212]
[1729753670073,0.4078,2553.4,2553.3,2.51165927]
[1729753670269,0.4078,2553.4,2553.3,2.63425235]
[1729753670973,0.4078,2553.4,2553.3,2.63426235]
[1729753672277,0.4078,2553.4,2553.3,2.83041118]
[1729753673769,0.4078,2553.4,2553.3,2.51166927]
[1729753673975,0.4078,2553.4,2553.3,2.8304097]
[1729753677485,0.4078,2553.4,2553.3,2.51166927]
[1729753677778,0.4078,2553.4,2553.3,2.83040969]
[1729753680880,0.4078,2553.4,2553.3,2.83040987]
[1729753684085,0.4078,2553.4,2553.3,2.83041017]
[1729753685384,0.4078,2553.4,2553.3,1.80141017]
[1729753685686,0.4078,2553.4,2553.3,2.83041017]
[1729753687880,0.4078,2553.4,2553.3,3.68854991]
[1729753688087,3.6306,2553.5,2553.4,0.3528]
[1729753688293,3.6306,2553.5,2553.4,0.6715409]
[1729753688482,3.6306,2553.5,2553.4,1.0752409]
[1729753688879,3.6306,2553.5,2553.4,2.20510017]
[1729753690394,3.2078,2553.5,2553.4,2.20510017]
[1729753690594,3.2078,2553.5,2553.4,9.8078285]
[1729753690888,3.2078,2553.5,2553.4,11.36345031]
[1729753691091,3.2078,2553.5,2553.4,2.91403703]
[1729753691392,3.2078,2553.5,2553.4,1.93335976]
[1729753691593,4.4879,2553.5,2553.4,1.93335976]
[1729753691889,4.4879,2553.5,2553.4,3.06321903]
[1729753693088,4.4879,2553.5,2553.4,2.71041903]
[1729753693287,4.84069,2553.5,2553.4,0.7224409]
[1729753693490,4.4879,2553.5,2553.4,1.0752409]
[1729753695099,4.4879,2553.5,2553.4,0.7565]
[1729753695294,4.4879,2553.5,2553.4,0.7224301]
[1729753695692,4.4879,2553.5,2553.4,0.3187301]
[1729753695894,5.97054927,2553.5,2553.4,0.3187301]
[1729753696097,9.88654927,2553.5,2553.4,0.1225885]
[1729753696296,13.95942917,2553.5,2552.9,1.01]
[1729753696600,3.56064,2553.1,2553.0,0.19616716]
[1729753696993,4.42384,2553.1,2553.0,0.19616716]
[1729753697194,4.071,2553.1,2553.0,0.19617451]
[1729753697698,4.071,2553.1,2553.0,0.54903451]
[1729753698403,4.071,2553.1,2553.0,0.19617451]
[1729753698804,4.071,2553.1,2552.9,2.49271927]
[1729753698994,0.8632,2553.1,2553.0,0.19616996]
[1729753699298,4.071,2553.1,2553.0,0.19616996]
[1729753700503,4.071,2553.1,2553.0,0.54902996]
[1729753701197,5.20085927,2553.1,2553.0,0.19616996]
[1729753701507,0.35286,2553.0,2552.8,2.49273927]
[1729753701705,0.35286,2553.0,2552.9,0.19618294]
[1729753701706,0.75956,2553.0,2552.9,0.19618294]
[1729753702392,1.88941927,2553.0,2552.8,2.13985927]
[1729753702597,1.88942927,2553.0,2552.8,2.13985927]
[1729753702799,1.88942927,2553.0,2552.8,1.36288]
[1729753703105,0.35287,2552.9,2552.8,2.13985927]
[1729753703306,0.35287,2552.9,2552.8,1.32604745]
[1729753703901,0.35287,2552.9,2552.8,0.19618977]
[1729753704108,0.35287,2552.9,2552.8,1.12985927]
[1729753707914,0.35287,2552.9,2552.8,1.48273927]
[1729753708312,0.35287,2552.9,2552.8,1.25247619]
[1729753709312,5.09721927,2553.0,2552.8,1.60535619]
[1729753709513,3.96736,2553.0,2552.9,1.12985927]
[1729753710116,0.75956,2553.0,2552.9,1.12985927]
[1729753710319,0.75956,2553.0,2552.7,1.01]
[1729753710320,0.35288,2552.9,2552.7,1.36289]
[1729753710517,0.35288,2552.9,2552.8,1.25247529]
[1729753711115,0.35288,2552.9,2552.8,0.12261602]
[1729753711308,9.29061185,2552.9,2552.4,1.01]
[1729753711515,1.12985927,2552.6,2552.3,3.2078]
[1729753711709,1.48278927,2552.5,2552.4,1.25248789]
[1729753711917,3.56073,2552.5,2552.4,1.25248789]
[1729753712322,3.56073,2552.5,2552.4,1.12985927]
[1729753712520,4.69058927,2552.5,2552.4,1.12985927]
[1729753712724,4.69058927,2552.5,2552.3,1.12985927]
[1729753712725,0.35295,2552.4,2552.3,1.12985927]
[1729753713023,3.56073,2552.5,2552.3,1.48280927]
[1729753713630,0.35294,2552.4,2552.3,1.12985927]
[1729753715015,4.33765927,2552.5,2552.3,1.48280927]
[1729753715016,4.69058927,2552.5,2552.3,1.48280927]
[1729753716419,4.69058927,2552.5,2552.4,1.12985927]
[1729753716420,3.56073,2552.5,2552.4,1.12985927]
[1729753717626,3.56073,2552.5,2552.4,1.48279927]
[1729753717627,3.2078,2552.5,2552.4,1.48279927]
[1729753720131,0.3529,2552.7,2552.5,0.35292]
[1729753720328,0.3529,2552.7,2552.5,1.90897927]
[1729753720629,4.46568636,2552.7,2552.6,0.35291]
[1729753720826,4.81858636,2552.7,2552.5,1.90897927]
[1729753721228,4.46568636,2552.7,2552.6,1.48276927]
[1729753721528,5.94844563,2552.7,2552.5,1.90897927]
[1729753723619,9.15624563,2552.7,2552.5,1.90897927]
[1729753724227,0.35291,2552.6,2552.5,1.55605927]
[1729753724431,0.4289,2552.6,2552.5,1.90898927]
[1729753726629,7.67348636,2552.7,2552.5,1.90898927]
[1729753726833,3.2078,2552.7,2552.6,1.48276927]
[1729753727432,3.2078,2552.7,2552.6,1.90136927]
[1729753728734,3.2078,2552.7,2552.6,1.48276927]
[1729753732534,1.48274927,2552.8,2552.6,1.48276927]
[1729753732837,3.2078,2552.7,2552.6,1.48276927]
[1729753733336,4.69055927,2552.7,2552.6,0.35291]
[1729753733527,4.69055927,2552.7,2552.5,1.55605927]
[1729753733734,4.69055927,2552.7,2552.5,1.90896927]
[1729753734732,4.69055927,2552.7,2552.6,0.35291]
[1729753735334,4.69055927,2552.7,2552.5,1.90897927]
[1729753738645,0.7941,2552.6,2552.5,1.90897927]
[1729753739240,0.7941,2552.6,2552.5,2.03160593]
[1729753739836,0.3981,2552.6,2552.5,2.03160593]
[1729753740345,0.3981,2552.6,2552.5,3.04160593]
[1729753740739,0.3981,2552.6,2552.5,2.91897927]
[1729753740941,0.3981,2552.6,2552.5,3.0416072]
[1729753741141,0.3981,2552.6,2552.5,2.91897927]
[1729753741547,0.3981,2552.6,2552.5,3.04161151]
[1729753742547,0.3981,2552.6,2552.5,2.03161151]
[1729753742745,0.3981,2552.6,2552.5,3.04161151]
[1729753743357,0.3981,2552.6,2552.5,2.03161151]
[1729753743540,0.3981,2552.6,2552.5,3.04161151]
[1729753743946,0.75101,2552.6,2552.5,3.04161151]
[1729753744748,1.88086927,2552.6,2552.5,1.13263224]
[1729753746649,1.88086927,2552.6,2552.5,1.13263435]
[1729753746847,1.88086927,2552.6,2552.5,0.12263435]
[1729753747054,0.35294,2552.4,2552.3,2.13985927]
[1729753747244,0.35294,2552.4,2552.3,2.45872601]
[1729753747442,0.35294,2552.4,2552.3,2.2624991]
[1729753747646,0.78854,2552.4,2552.3,2.2624991]
[1729753747957,0.78854,2552.4,2552.3,2.6154491]
[1729753747958,0.4356,2552.4,2552.3,2.6154491]
[1729753748252,0.78563,2552.5,2552.3,2.81167351]
[1729753748558,0.78563,2552.5,2552.4,1.2524991]
[1729753749859,0.78563,2552.5,2552.4,1.6054391]
[1729753750054,0.4327,2552.5,2552.4,1.6054391]
[1729753750261,0.78563,2552.5,2552.4,1.6054391]
[1729753750557,0.78563,2552.5,2552.4,1.25249596]
[1729753751452,10.32966987,2552.5,2552.4,0.12263669]
[1729753751756,9.97673987,2552.5,2551.9,1.50306672]
[1729753752061,9.97673987,2552.5,2552.0,1.44875932]
[1729753752062,1.48283927,2552.1,2552.0,1.44875932]
[1729753752562,1.48283927,2552.1,2552.0,0.31890005]
[1729753752760,1.48283927,2552.1,2552.0,1.44875932]
[1729753753055,1.89493927,2552.1,2552.0,1.44875932]
[1729753754165,1.89493927,2552.1,2552.0,1.44876163]
[1729753754457,1.89493927,2552.1,2552.0,0.31890236]
[1729753754656,1.89493927,2552.1,2552.0,0.12265475]
[1729753755058,1.89493927,2552.1,2552.0,1.25251402]
[1729753756150,1.89493927,2552.1,2552.0,0.12265475]
[1729753757058,1.89493927,2552.1,2552.0,1.25251402]
[1729753757257,1.89493927,2552.1,2552.0,1.25252089]
[1729753757759,1.89493927,2552.1,2552.0,1.25251872]
[1729753758157,1.89493927,2552.1,2552.0,1.25251805]
[1729753758367,3.2078,2552.3,2552.2,0.35297]
[1729753758665,3.2078,2552.3,2552.2,1.60547614]
[1729753759456,3.2078,2552.3,2552.2,1.60547642]
[1729753760765,0.4057,2552.4,2552.2,1.60547642]
[1729753760962,3.2078,2552.3,2552.2,1.48282927]
[1729753761168,3.2078,2552.3,2552.2,1.60547459]
[1729753761462,4.33765927,2552.3,2552.2,1.48282927]
[1729753761667,4.33765927,2552.3,2552.2,1.60547539]
[1729753763965,3.2078,2552.3,2552.2,1.60547539]
[1729753765563,3.2078,2552.6,2552.2,1.25250539]
[1729753765761,3.2078,2552.6,2552.5,1.48277927]
[1729753766972,4.4606,2552.6,2552.5,1.48277927]
[1729753767472,0.35294,2552.4,2552.2,0.35296]
[1729753767661,1.48279927,2552.4,2552.3,1.1326432]
[1729753767862,1.48279927,2552.4,2552.3,0.1226432]
[1729753768161,0.35295,2552.3,2552.1,0.78768]
[1729753768358,0.35295,2552.3,2552.1,1.79768]
[1729753768359,1.56795927,2552.2,2552.1,1.79768]
[1729753768561,6.25751015,2552.2,2552.1,1.92032784]
[1729753769167,6.25751015,2552.2,2552.1,2.11656658]
[1729753769869,6.25751015,2552.2,2552.1,1.10656658]
[1729753770062,6.25751015,2552.2,2552.1,2.11656658]
[1729753770262,6.25751015,2552.2,2552.1,1.92032784]
[1729753771070,6.25751015,2552.2,2552.1,1.92032867]
[1729753772564,6.25751015,2552.2,2552.1,0.12264867]
[1729753772759,6.61048015,2552.2,2552.1,0.12265041]
[1729753773871,6.61048015,2552.2,2552.0,2.49284927]
[1729753774068,1.12985927,2552.1,2552.0,2.49284927]
[1729753774375,1.12985927,2552.1,2552.0,2.61550761]
[1729753774766,1.12985927,2552.1,2552.0,1.48564834]
[1729753774962,1.12985927,2552.1,2552.0,2.61550761]
[1729753775167,1.19617,2552.2,2552.0,1.60550761]
[1729753775363,1.19617,2552.2,2552.0,1.48284927]
[1729753775875,1.19617,2552.2,2552.0,0.35299]
[1729753776172,1.19617,2552.2,2552.0,1.48284927]
[1729753776377,4.41283827,2552.1,2552.0,1.48284927]
[1729753776673,4.41283827,2552.1,2552.0,0.1226574]
[1729753776674,5.89567754,2552.1,2552.0,0.1226574]
[1729753777367,9.46109754,2552.1,2551.7,1.36303]
[1729753777567,1.48286927,2551.9,2551.8,0.12266466]
[1729753777773,3.5608,2552.0,2551.8,1.25252393]
[1729753778073,3.2078,2552.0,2551.9,1.12985927]
[1729753778276,3.2078,2552.0,2551.9,1.60553199]
[1729753778770,3.6064,2552.0,2551.9,1.60553199]
[1729753779870,3.2078,2552.0,2551.9,1.60553199]
[1729753780272,3.2078,2552.0,2551.9,1.48286927]
[1729753780466,3.2078,2552.0,2551.9,1.60553051]
[1729753780770,3.2078,2552.0,2551.9,1.60552902]
[1729753782378,3.2078,2552.0,2551.9,1.80177566]
[1729753783572,3.2078,2552.3,2551.9,5.36716566]
[1729753783773,3.56076,2552.3,2552.2,1.12985927]
[1729753784085,3.56076,2552.3,2552.2,1.25251557]
[1729753784378,3.56076,2552.3,2552.2,1.25250522]
[1729753784582,3.2078,2552.3,2552.2,1.60547522]
[1729753785083,3.2078,2552.3,2552.2,6.84996106]
[1729753785383,3.2078,2552.3,2552.2,5.72010179]
[1729753786477,5.89716927,2552.6,2552.4,0.35293]
[1729753786676,5.89716927,2552.6,2552.4,1.48278927]
[1729753787079,5.89716927,2552.6,2552.4,1.91988927]
[1729753787285,1.12985927,2552.5,2552.4,0.4371]
[1729753787591,1.12985927,2552.5,2552.4,1.5817374]
[1729753787773,1.12985927,2552.5,2552.4,1.9346774]
[1729753788384,1.48278927,2552.5,2552.4,1.1446374]
[1729753789677,1.48278927,2552.5,2552.4,0.1226374]
[1729753789881,5.72807908,2552.5,2552.4,0.1226374]
[1729753790082,5.72807908,2552.5,2552.2,1.022]
[1729753790083,0.35296,2552.3,2552.2,1.022]
[1729753790279,4.69061927,2552.3,2552.2,1.14464406]
[1729753791383,4.69061927,2552.3,2552.2,1.022]
[1729753791581,4.69061927,2552.3,2552.2,1.14464999]
[1729753791785,4.69061927,2552.3,2552.2,1.14465036]
[1729753793385,4.69061927,2552.3,2552.2,0.12265044]
[1729753795290,4.69061927,2552.3,2552.2,0.12265126]
[1729753798882,4.69060927,2552.3,2552.2,0.12265432]
[1729753799290,1.12985927,2552.3,2552.1,1.12985927]
[1729753799489,4.79947,2552.2,2552.1,1.12985927]
[1729753799696,4.79947,2552.2,2552.1,1.25251376]
[1729753800389,5.92932927,2552.2,2552.1,0.12265449]
[1729753800586,10.33221766,2552.2,2552.1,0.12265449]
[1729753800893,0.35298,2552.1,2551.9,2.50485927]
[1729753801094,0.35298,2552.1,2552.0,0.12265888]
[1729753801994,0.35298,2552.1,2552.0,0.12265928]
[1729753803089,1.48283927,2552.1,2552.0,0.12265928]
[1729753803403,4.0463,2552.2,2552.1,0.35298]
[1729753803591,4.0463,2552.2,2552.1,1.60549855]
[1729753803896,8.19067709,2552.2,2552.1,1.60549855]
[1729753804099,8.19067709,2552.2,2552.1,0.12265928]
[1729753804295,9.32053636,2552.2,2552.1,0.47563928]
[1729753804496,9.32053636,2552.2,2552.1,1.60549855]
[1729753804696,3.6265,2552.2,2552.1,1.60549855]
[1729753805094,3.6265,2552.2,2552.1,1.80173723]
[1729753805294,3.6265,2552.2,2552.1,2.23652333]
[1729753805701,3.6265,2552.2,2552.1,3.25852333]
[1729753807193,0.4187,2552.2,2552.1,3.25852333]
[1729753808999,0.4187,2552.2,2552.1,1.80978]
[1729753809302,0.4187,2552.2,2552.1,3.25851302]
[1729753809894,0.4187,2552.2,2552.1,3.24651302]
[1729753813098,0.77167,2552.2,2552.1,2.92763927]
[1729753813305,0.77167,2552.2,2552.1,3.24651284]
[1729753813501,0.77167,2552.2,2552.1,2.11665357]
[1729753813699,0.4187,2552.2,2552.1,3.24651284]
[1729753813901,0.77167,2552.2,2552.1,2.89353284]
[1729753814596,0.77167,2552.2,2552.1,2.69730295]
[1729753817800,0.77167,2552.2,2552.1,1.68730295]
[1729753818105,1.90152927,2552.2,2552.1,0.12264368]
[1729753818800,1.54855927,2552.2,2551.8,1.89966927]
[1729753819006,0.353,2552.0,2551.9,1.13265667]
[1729753819302,0.353,2552.0,2551.9,2.61552594]
[1729753820298,0.353,2552.0,2551.9,2.61552815]
[1729753821099,4.046,2552.1,2551.9,2.61552815]
[1729753821300,4.39899,2552.1,2552.0,0.12265888]
[1729753821710,8.8685642,2552.1,2552.0,0.12265888]
[1729753823607,9.99842347,2552.1,2552.0,0.12265888]
[1729753824509,9.64543347,2552.1,2551.8,2.13985927]
[1729753824710,1.48286927,2551.9,2551.8,2.13985927]
[1729753825013,1.48286927,2551.9,2551.8,1.44879673]
[1729753825806,4.69066927,2551.9,2551.8,1.44879673]
[1729753826412,13.15593101,2551.9,2551.8,0.12266825]
[1729753827008,53.95593101,2551.9,2551.8,0.12266825]
[1729753827412,0.35305,2551.6,2551.5,2.53875927]
[1729753827709,0.35305,2551.6,2551.5,2.85771271]
[1729753828119,0.75945,2551.6,2551.5,2.85771271]
[1729753828306,0.75945,2551.6,2551.5,2.66143367]
[1729753828712,0.75945,2551.6,2551.5,2.85771616]
[1729753828913,0.75945,2551.6,2551.5,3.21077616]
[1729753829313,0.75945,2551.6,2551.5,3.01449367]
[1729753829808,0.4064,2551.6,2551.5,3.01449367]
[1729753830409,3.2078,2551.7,2551.5,2.66143367]
[1729753830611,3.2078,2551.7,2551.6,1.60558367]
[1729753830813,3.2078,2551.7,2551.6,1.8018565]
[1729753831117,3.2078,2551.7,2551.6,5.7210565]
[1729753831409,3.2078,2551.7,2551.6,1.8018565]
[1729753833419,1.12985927,2551.9,2551.8,0.35302]
[1729753833610,4.33765927,2551.9,2551.8,1.60555367]
[1729753833818,4.69066927,2551.9,2551.8,1.60555367]
[1729753834016,3.2078,2551.9,2551.8,1.60555367]
[1729753834211,3.2078,2551.9,2551.8,1.8018108]
[1729753834511,3.2078,2551.9,2551.8,2.81281115]
[1729753834709,3.2078,2551.9,2551.8,2.92127927]
[1729753834909,3.2078,2551.9,2551.8,3.04394206]
[1729753835110,3.2078,2551.9,2551.8,2.92127927]
[1729753835310,3.2078,2551.9,2551.8,3.24019776]
[1729753836319,2.31124927,2552.1,2551.9,0.353]
[1729753836515,3.2078,2552.0,2551.9,0.353]
[1729753836816,3.2078,2552.0,2551.9,0.47566148]
[1729753837212,2.31124927,2552.1,2551.9,0.47566148]
[1729753837414,3.2078,2552.0,2551.9,0.353]
[1729753837617,3.2078,2552.0,2551.9,0.47566152]
[1729753837815,2.31124927,2552.1,2551.9,0.47566152]
[1729753838117,4.33765927,2552.0,2551.9,0.353]
[1729753838319,4.33765927,2552.0,2551.9,0.47566134]
[1729753838514,4.33765927,2552.0,2551.9,0.353]
[1729753838721,4.33765927,2552.0,2551.9,0.47566134]
[1729753839022,4.33765927,2552.0,2551.9,1.60552061]
[1729753840219,4.33765927,2552.0,2551.9,0.47566134]
[1729753841324,1.12985927,2552.0,2551.9,0.47566134]
[1729753841822,4.33765927,2552.0,2551.9,0.47566134]
[1729753842725,4.69064927,2552.0,2551.9,0.12266134]
[1729753843425,4.33765927,2552.0,2551.9,0.47567134]
[1729753843925,4.69064927,2552.0,2551.9,0.47567134]
[1729753844524,4.33765927,2552.0,2551.9,0.47567134]
[1729753844828,4.69064927,2552.0,2551.9,0.12266134]
[1729753845923,0.35301,2551.9,2551.8,1.36302]
[1729753846123,1.48286927,2551.9,2551.8,1.36302]
[1729753846514,1.12985927,2551.9,2551.8,1.48568651]
[1729753846915,1.48286927,2551.9,2551.8,1.48568651]
[1729753847124,1.48286927,2551.9,2551.8,0.12266651]
[1729753847326,5.89214526,2551.9,2551.8,0.12266651]
[1729753847721,5.89214526,2551.9,2551.8,0.47568651]
[1729753847930,5.89214526,2551.9,2551.8,0.12266651]
[1729753848627,5.53913526,2551.9,2551.8,0.47568651]
[1729753849831,5.53913526,2551.9,2551.8,0.4756839]
[1729753850823,4.40927599,2551.9,2551.8,0.4756839]
[1729753851728,4.33765927,2552.0,2551.9,0.35301]
[1729753851933,4.33765927,2552.0,2551.9,0.4756739]
[1729753852233,3.2078,2552.0,2551.9,1.60553317]
[1729753852619,3.2078,2552.0,2551.9,1.80178339]
[1729753852825,3.2078,2552.0,2551.9,2.21038339]
[1729753853329,3.2078,2552.0,2551.9,1.89146927]
[1729753853528,3.2078,2552.0,2551.9,2.01412297]
[1729753853831,3.2078,2552.0,2551.9,2.2103689]
[1729753857234,0.4,2565.6,2551.9,2.2103689]
[1729753857235,3.2078,2552.5,2552.4,0.35294]
[1729753857433,4.69058927,2552.5,2552.4,1.48279927]
[1729753857738,5.10108927,2552.5,2552.4,0.35294]
[1729753859239,4.74815927,2552.5,2552.4,0.35294]
[1729753860733,5.10108927,2552.5,2552.3,1.12985927]
[1729753860933,5.10108927,2552.5,2552.3,1.48279927]
[1729753861631,4.74815927,2552.5,2552.4,0.35294]
[1729753862032,5.10108927,2552.5,2552.3,1.48279927]
[1729753864442,4.74815927,2552.5,2552.3,1.12985927]
[1729753864634,4.74815927,2552.5,2552.4,0.35294]
[1729753864841,3.6183,2552.5,2552.4,1.48279927]
[1729753865043,3.2078,2552.5,2552.4,1.60543684]
[1729753865539,3.56069,2552.8,2552.6,0.35291]
[1729753865740,3.56069,2552.8,2552.7,1.12985927]
[1729753865933,3.56069,2552.8,2552.7,1.25248409]
[1729753866242,3.56069,2552.8,2552.7,1.12985927]
[1729753866644,4.69054927,2552.8,2552.7,1.12985927]
[1729753866841,3.2078,2552.8,2552.7,1.48275927]
[1729753867036,3.2078,2552.8,2552.7,5.40035927]
[1729753867337,3.2078,2552.8,2552.7,5.52298241]
[1729753867543,3.2078,2552.8,2552.7,0.47552314]
[1729753867748,3.2078,2552.8,2552.7,1.60538241]
[1729753868943,3.2078,2552.8,2552.7,2.61538241]
[1729753870742,5.18605927,2552.9,2552.8,0.35288]
[1729753871338,3.2078,2552.9,2552.8,0.35288]
[1729753871542,3.2078,2552.9,2552.8,1.90763927]
[1729753874747,4.33765927,2552.9,2552.8,1.90763927]
[1729753875449,4.33765927,2552.9,2552.7,1.009]
[1729753875450,4.69052927,2552.9,2552.7,1.12985927]
[1729753875652,4.33765927,2552.9,2552.7,2.13885927]
[1729753875849,4.69052927,2552.9,2552.7,2.49174927]
[1729753876148,1.12985927,2552.8,2552.7,1.48274927]
[1729753876652,4.69053927,2552.9,2552.7,1.48274927]
[1729753878040,1.48273927,2552.9,2552.7,1.48274927]
[1729753878246,4.69053927,2552.9,2552.7,1.48274927]
[1729753878657,4.33765927,2552.9,2552.8,0.35288]
[1729753878951,4.69052927,2552.9,2552.7,1.48274927]
[1729753879341,1.48273927,2552.8,2552.6,0.75331]
[1729753879545,1.12985927,2552.7,2551.9,3.2078]
[1729753879749,5.19955927,2552.6,2552.5,0.35292]
[1729753883458,5.19955927,2552.6,2552.4,2.13885927]
[1729753883659,5.55247927,2552.6,2552.4,1.48279927]
[1729753883850,1.48278927,2552.5,2552.3,2.49179927]
[1729753884051,1.12985927,2552.5,2552.3,1.12985927]
[1729753884353,0.3972,2552.4,2552.3,1.48280927]